fUST/lending_fUST_20250713
["ID","MTS","AMOUNT","RATE_DAILY","PERIOD"]
[371719593,1752402646118,-151.0,0.000188,2]
[371719596,1752402646127,-2331.89606795,0.00018834,2]
[371719599,1752402646136,-221.46611768,0.00018844,2]
[371719601,1752402646147,-194.192504,0.00018863,2]
[371719603,1752402646157,-303.47033502,0.000189,2]
[371719605,1752402646167,-367.95531876,0.000189,2]
[371719607,1752402646177,-460.0,0.00018904,2]
[371719609,1752402646190,-460.0,0.00018904,2]
[371719611,1752402646200,-460.0,0.00018904,2]
[371719613,1752402646209,-268.53,0.00018904,2]
[371719615,1752402646219,-460.0,0.00018904,2]
[371719617,1752402646230,-460.0,0.00018904,2]
[371719619,1752402646240,-460.0,0.00018904,2]
[371719621,1752402646249,-460.0,0.00018904,2]
[371719623,1752402646261,-710.47,0.00018904,2]
[371719625,1752402646271,-1051.33,0.00018904,2]
[371719627,1752402646280,-460.0,0.00018904,2]
[371719629,1752402646290,-460.0,0.00018904,2]
[371719631,1752402646301,-696.32,0.00018904,2]
[371719633,1752402646310,-460.0,0.00018904,2]
[371719635,1752402646319,-460.0,0.00018904,2]
[371719637,1752402646330,-460.0,0.00018904,2]
[371719639,1752402646340,-460.0,0.00018904,2]
[371719642,1752402646351,-460.0,0.00018904,2]
[371719644,1752402646361,-1132.11,0.00018904,2]
[371719646,1752402646371,-503.85,0.00018904,2]
[371719648,1752402646381,-1332.22,0.00018904,2]
[371719650,1752402646391,-502.81,0.00018904,2]
[371719652,1752402646401,-460.0,0.00018904,2]
[371719654,1752402646412,-196.70412629,0.00018904,2]
[371719656,1752402646422,-493.58,0.00018904,2]
[371719658,1752402646433,-942.93,0.00018904,2]
[371719660,1752402646444,-460.0,0.00018904,2]
[371719662,1752402646454,-328.24,0.00018904,2]
[371719664,1752402646464,-1592.51,0.00018904,2]
[371719666,1752402646474,-460.0,0.00018904,2]
[371719668,1752402646485,-1878.02,0.00018904,2]
[371719670,1752402646497,-194.192504,0.00018946,2]
[371719672,1752402646508,-2705.0615869,0.00019003,2]
[371719674,1752402646518,-151.0,0.00019007,2]
[371719676,1752402646528,-360.0,0.00019065,2]
[371719679,1752402646538,-303.47033502,0.00019089,2]
[371719681,1752402646548,-2360.16801685,0.000191,2]
[371719683,1752402646558,-1389.82012377,0.000191,2]
[371719685,1752402646568,-12598.31844336,0.00019162,2]
[371719687,1752402646578,-500.0,0.00019173,2]
[371719689,1752402646588,-500.0,0.00019173,2]
[371719691,1752402646598,-502.3432928,0.00019173,2]
[371719693,1752402646608,-366.56020996,0.00019173,2]
[371719695,1752402646618,-501.18861077,0.00019173,2]
[371719697,1752402646628,-500.0,0.00019173,2]
[371719699,1752402646638,-500.0,0.00019173,2]
[371719701,1752402646647,-500.0,0.00019173,2]
[371719703,1752402646658,-500.0,0.00019173,2]
[371719705,1752402646667,-500.0,0.00019173,2]
[371719707,1752402646677,-500.0,0.00019173,2]
[371719709,1752402646686,-161.37660368,0.00019173,2]
[371719711,1752402646695,-500.0,0.00019173,2]
[371719713,1752402646705,-500.0,0.00019173,2]
[371719715,1752402646715,-500.0,0.00019173,2]
[371719717,1752402646724,-500.0,0.00019173,2]
[371719719,1752402646733,-500.29892395,0.00019173,2]
[371719721,1752402646743,-500.76965941,0.00019173,2]
[371719724,1752402646753,-500.0,0.00019173,2]
[371719726,1752402646763,-500.0,0.00019173,2]
[371719728,1752402646773,-500.0,0.00019173,2]
[371719730,1752402646783,-618.04136094,0.00019173,2]
[371719732,1752402646793,-643.63847005,0.00019173,2]
[371719734,1752402646802,-460.0,0.00019178,2]
[371719736,1752402646812,-460.0,0.00019178,2]
[371719738,1752402646823,-460.0,0.00019178,2]
[371719740,1752402646832,-460.0,0.00019178,2]
[371719743,1752402646841,-460.0,0.00019178,2]
[371719746,1752402646851,-460.0,0.00019178,2]
[371719748,1752402646861,-460.0,0.00019178,2]
[371719750,1752402646871,-460.0,0.00019178,2]
[371719752,1752402646880,-255.16,0.00019178,2]
[371719754,1752402646890,-460.0,0.00019178,2]
[371719756,1752402646900,-710.47,0.00019178,2]
[371719758,1752402646909,-1051.33,0.00019178,2]
[371719760,1752402646919,-535.21974326,0.00019178,2]
[371719762,1752402646929,-460.0,0.00019178,2]
[371719764,1752402646939,-696.32,0.00019178,2]
[371719766,1752402646949,-460.0,0.00019178,2]
[371719768,1752402646959,-460.0,0.00019178,2]
[371719770,1752402646969,-460.0,0.00019178,2]
[371719772,1752402646980,-460.0,0.00019178,2]
[371719775,1752402646990,-460.0,0.00019178,2]
[371719777,1752402647000,-1132.11,0.00019178,2]
[371719779,1752402647010,-503.85,0.00019178,2]
[371719781,1752402647020,-1332.22,0.00019178,2]
[371719783,1752402647029,-502.81,0.00019178,2]
[371719785,1752402647039,-460.0,0.00019178,2]
[371719787,1752402647050,-493.58,0.00019178,2]
[371719789,1752402647061,-942.93,0.00019178,2]
[371719791,1752402647071,-1592.51,0.00019178,2]
[371719793,1752402647081,-460.0,0.00019178,2]
[371719795,1752402647090,-1878.02,0.00019178,2]
[371719797,1752402647100,-666.0,0.00019178,2]
[371719799,1752402647109,-372.756912,0.00019178,2]
[371719801,1752402647119,-151.0,0.00019182,2]
[371719803,1752402647129,-265.931367,0.00019182,2]
[371719805,1752402647141,-265.931367,0.00019182,2]
[371719807,1752402647151,-151.0,0.00019183,2]
[371719809,1752402647160,-198.0,0.00019183,2]
[371719811,1752402647169,-1000.0,0.00019183,2]
[371719813,1752402647179,-1000.0,0.00019183,2]
[371719816,1752402647195,-1000.0,0.00019183,2]
[371719818,1752402647204,-1000.0,0.00019183,2]
[371719820,1752402647214,-1000.0,0.00019183,2]
[371719822,1752402647223,-207.4,0.00019183,2]
[371719824,1752402647234,-25000.0,0.00019183,2]
[371719826,1752402647244,-12307.61440614,0.00019183,2]
[371719828,1752402647252,-950.27,0.000192,2]
[371719830,1752402647264,-2426.31252001,0.00019213,2]
[371719832,1752402647273,-778.89184773,0.00019221,2]
[371719834,1752402647283,-303.47033502,0.00019278,2]
[371719836,1752402647294,-2705.0615869,0.00019279,2]
[371719838,1752402647303,-100000.0,0.00019329,2]
[371719840,1752402647313,-505.49074743,0.00019373,2]
[371719842,1752402647323,-500.0,0.00019373,2]
[371719844,1752402647332,-21724.14,0.000194,2]
[371719846,1752402647342,-900.0,0.0001942,2]
[371719848,1752402647352,-460.0,0.00019452,2]
[371719850,1752402647362,-545.8,0.00019452,2]
[371719852,1752402647371,-460.0,0.00019452,2]
[371719854,1752402647381,-460.0,0.00019452,2]
[371719856,1752402647391,-460.0,0.00019452,2]
[371719858,1752402647403,-460.0,0.00019452,2]
[371719861,1752402647413,-710.47,0.00019452,2]
[371719862,1752402647422,-1051.33,0.00019452,2]
[371719865,1752402647432,-460.0,0.00019452,2]
[371719867,1752402647450,-696.32,0.00019452,2]
[371719869,1752402647459,-460.0,0.00019452,2]
[371719871,1752402647469,-207.62,0.00019452,2]
[371719873,1752402647479,-460.0,0.00019452,2]
[371719875,1752402647489,-460.0,0.00019452,2]
[371719877,1752402647499,-460.0,0.00019452,2]
[371719879,1752402647508,-1132.11,0.00019452,2]
[371719881,1752402647518,-503.85,0.00019452,2]
[371719883,1752402647528,-1332.22,0.00019452,2]
[371719885,1752402647538,-502.81,0.00019452,2]
[371719887,1752402647548,-460.0,0.00019452,2]
[371719889,1752402647559,-493.58,0.00019452,2]
[371719891,1752402647569,-942.93,0.00019452,2]
[371719894,1752402647578,-1592.51,0.00019452,2]
[371719896,1752402647589,-460.0,0.00019452,2]
[371719898,1752402647598,-1878.02,0.00019452,2]
[371719900,1752402647608,-303.47033502,0.00019467,2]
[371719902,1752402647618,-2705.0615869,0.00019555,2]
[371719904,1752402647627,-303.47033502,0.00019656,2]
[371719906,1752402647636,-1000.0,0.00019721,2]
[371719908,1752402647646,-1000.0,0.00019721,2]
[371719910,1752402647656,-503.07991612,0.00019721,2]
[371719912,1752402647666,-505.46469037,0.00019721,2]
[371719914,1752402647675,-590.40244496,0.00019721,2]
[371719916,1752402647685,-500.0,0.00019721,2]
[371719918,1752402647694,-1002.07498449,0.00019721,2]
[371719920,1752402647704,-1000.0,0.00019721,2]
[371719922,1752402647714,-500.0,0.00019721,2]
[371719924,1752402647724,-1000.0,0.00019721,2]
[371719926,1752402647734,-500.52366226,0.00019721,2]
[371719928,1752402647743,-500.0,0.00019721,2]
[371719930,1752402647754,-460.0,0.00019726,2]
[371719932,1752402647763,-460.0,0.00019726,2]
[371719934,1752402647773,-246.2,0.00019726,2]
[371719937,1752402647783,-460.0,0.00019726,2]
[371719939,1752402647793,-460.0,0.00019726,2]
[371719941,1752402647803,-710.47,0.00019726,2]
[371719943,1752402647813,-1051.33,0.00019726,2]
[371719945,1752402647823,-460.0,0.00019726,2]
[371719947,1752402647833,-696.32,0.00019726,2]
[371719949,1752402647843,-460.0,0.00019726,2]
[371719951,1752402647853,-460.0,0.00019726,2]
[371719953,1752402647862,-460.0,0.00019726,2]
[371719955,1752402647872,-460.0,0.00019726,2]
[371719957,1752402647883,-1132.11,0.00019726,2]
[371719959,1752402647892,-503.85,0.00019726,2]
[371719961,1752402647902,-1332.22,0.00019726,2]
[371719963,1752402647911,-502.81,0.00019726,2]
[371719965,1752402647922,-460.0,0.00019726,2]
[371719967,1752402647932,-493.58,0.00019726,2]
[371719970,1752402647942,-942.93,0.00019726,2]
[371719972,1752402647952,-1592.51,0.00019726,2]
[371719974,1752402647963,-152.090588,0.00019726,2]
[371719976,1752402647973,-460.0,0.00019726,2]
[371719978,1752402647983,-1878.02,0.00019726,2]
[371719980,1752402647993,-2705.0615869,0.00019831,2]
[371719982,1752402648003,-455.20550252,0.00019845,4]
[371719984,1752402648013,-1000.0,0.00019921,2]
[371719986,1752402648024,-154.069854,0.00019989,2]
[371719988,1752402648033,-265.931367,0.00019989,2]
[371719990,1752402648043,-265.931367,0.00019989,2]
[371719993,1752402648054,-460.0,0.0002,2]
[371719995,1752402648063,-460.0,0.0002,2]
[371719997,1752402648074,-420.54,0.0002,2]
[371719999,1752402648084,-460.0,0.0002,2]
[371720001,1752402648094,-710.47,0.0002,2]
[371720003,1752402648103,-1051.33,0.0002,2]
[371720005,1752402648113,-460.0,0.0002,2]
[371720007,1752402648123,-696.32,0.0002,2]
[371720009,1752402648133,-460.0,0.0002,2]
[371720011,1752402648143,-460.0,0.0002,2]
[371720013,1752402648155,-459.11,0.0002,2]
[371720015,1752402648165,-460.0,0.0002,2]
[371720017,1752402648177,-20370.91500709,0.0002,2]
[371720019,1752402648188,-1132.11,0.0002,2]
[371720021,1752402648198,-503.85,0.0002,2]
[371720023,1752402648208,-1332.22,0.0002,2]
[371720025,1752402648219,-502.81,0.0002,2]
[371720028,1752402648229,-460.0,0.0002,2]
[371720030,1752402648238,-493.58,0.0002,2]
[371720032,1752402648249,-942.93,0.0002,2]
[371720034,1752402648259,-1592.51,0.0002,2]
[371720036,1752402648270,-460.0,0.0002,2]
[371720038,1752402648280,-1878.02,0.0002,2]
[371720040,1752402648290,-455.20550252,0.00020034,4]
[371720042,1752402648301,-221.46611768,0.00020097,2]
[371720044,1752402648311,-2705.0615869,0.00020107,2]
[371720046,1752402648321,-476.831063,0.00020187,2]
[371720048,1752402648331,-455.20550252,0.00020223,4]
[371720050,1752402648341,-500.0,0.00020268,2]
[371720052,1752402648352,-314.79423799,0.00020273,2]
[371720059,1752402648404,-155.53519892,0.00019339,2]
[371720061,1752402648415,-145.20576201,0.00020273,2]
[371720063,1752402648427,-460.0,0.00020273,2]
[371720065,1752402648437,-460.0,0.00020273,2]
[371720067,1752402648447,-710.47,0.00020273,2]
[371720069,1752402648458,-1051.33,0.00020273,2]
[371720071,1752402648469,-536.84,0.00020273,2]
[371720073,1752402648481,-696.32,0.00020273,2]
[371720087,1752402648587,-491.55,0.00020273,2]
[371720089,1752402648612,-460.0,0.00020273,2]
[371720091,1752402648621,-1132.11,0.00020273,2]
[371720093,1752402648631,-503.85,0.00020273,2]
[371720095,1752402648641,-1332.22,0.00020273,2]
[371720097,1752402648651,-502.81,0.00020273,2]
[371720099,1752402648661,-460.0,0.00020273,2]
[371720101,1752402648670,-493.58,0.00020273,2]
[371720103,1752402648680,-942.93,0.00020273,2]
[371720105,1752402648690,-1592.51,0.00020273,2]
[371720107,1752402648699,-460.0,0.00020273,2]
[371720109,1752402648709,-1878.02,0.00020273,2]
[371720111,1752402648720,-2260.06028694,0.00020383,3]
[371720113,1752402648732,-445.00129996,0.00020383,3]
[371720115,1752402648742,-455.20550252,0.00020412,4]
[371720117,1752402648752,-900.0,0.00020516,2]
[371720119,1752402648762,-199.99288752,0.00020547,2]
[371720121,1752402648774,-260.00711248,0.00020547,2]
[371720124,1752402648784,-460.0,0.00020547,2]
[371720125,1752402648794,-710.47,0.00020547,2]
[371720128,1752402648804,-1051.33,0.00020547,2]
[371720130,1752402648815,-696.32,0.00020547,2]
[371720132,1752402648826,-460.0,0.00020547,2]
[371720134,1752402648837,-1132.11,0.00020547,2]
[371720136,1752402648847,-503.85,0.00020547,2]
[371720138,1752402648857,-1332.22,0.00020547,2]
[371720139,1752402648868,-502.81,0.00020547,2]
[371720141,1752402648879,-460.0,0.00020547,2]
[371720143,1752402648889,-493.58,0.00020547,2]
[371720145,1752402648900,-942.93,0.00020547,2]
[371720147,1752402648910,-1592.51,0.00020547,2]
[371720149,1752402648920,-460.0,0.00020547,2]
[371720151,1752402648930,-947.43860937,0.00020547,2]
[371720168,1752402649088,-375.481998,0.00016438,2]
[371720170,1752402649101,-84.518002,0.00016438,2]
[371720172,1752402649111,-460.0,0.00016438,2]
[371720174,1752402649121,-460.0,0.00016438,2]
[371720176,1752402649131,-378.88204756,0.00016712,2]
[371720178,1752402649144,-81.11795244,0.00016712,2]
[371720180,1752402649153,-312.43687684,0.00016712,2]
[371720182,1752402649165,-147.56312316,0.00016712,2]
[371720184,1752402649175,-334.86332391,0.00020547,2]
[371720186,1752402649190,-595.71806672,0.00020547,2]
[371720188,1752402649200,-215.0738,0.00020552,2]
[371720190,1752402649209,-455.24349175,0.00020601,4]
[371720192,1752402649219,-2705.0615869,0.00020659,3]
[371720194,1752402649228,-381.323,0.00020667,2]
[371720196,1752402649237,-460.0,0.00020821,2]
[371720198,1752402649247,-460.0,0.00020821,2]
[371720200,1752402649258,-710.47,0.00020821,2]
[371720202,1752402649268,-1051.33,0.00020821,2]
[371720204,1752402649278,-696.32,0.00020821,2]
[371720206,1752402649288,-460.0,0.00020821,2]
[371720208,1752402649297,-1132.11,0.00020821,2]
[371720210,1752402649308,-503.85,0.00020821,2]
[371720212,1752402649317,-1332.22,0.00020821,2]
[371720214,1752402649326,-502.81,0.00020821,2]
[371720216,1752402649337,-460.0,0.00020821,2]
[371720218,1752402649347,-493.58,0.00020821,2]
[371720220,1752402649356,-942.93,0.00020821,2]
[371720222,1752402649365,-1592.51,0.00020821,2]
[371720224,1752402649375,-460.0,0.00020821,2]
[371720226,1752402649384,-1878.02,0.00020821,2]
[371720228,1752402649393,-412.626,0.00020891,2]
[371720230,1752402649403,-647.0,0.00020891,2]
[371720232,1752402649412,-2944.88,0.000209,2]
[371720234,1752402649422,-21724.14,0.000209,2]
[371720236,1752402649431,-151.0,0.000209,2]
[371720238,1752402649441,-151.0,0.000209,2]
[371720240,1752402649452,-151.0,0.000209,2]
[371720242,1752402649462,-151.0,0.000209,2]
[371720244,1752402649472,-151.0,0.000209,2]
[371720246,1752402649481,-2705.0615869,0.00020934,4]
[371720248,1752402649491,-2426.31252001,0.00020993,2]
[371720250,1752402649501,-950.27,0.00021,2]
[371720252,1752402649510,-557.0,0.00021039,2]
[371720254,1752402649519,-557.0,0.00021077,2]
[371720255,1752402649529,-507.22,0.00021095,2]
[371720257,1752402649539,-460.0,0.00021095,2]
[371720259,1752402649548,-710.47,0.00021095,2]
[371720261,1752402649558,-1051.33,0.00021095,2]
[371720263,1752402649568,-696.32,0.00021095,2]
[371720265,1752402649577,-460.0,0.00021095,2]
[371720267,1752402649586,-1132.11,0.00021095,2]
[371720269,1752402649595,-503.85,0.00021095,2]
[371720271,1752402649606,-1332.22,0.00021095,2]
[371720273,1752402649616,-502.81,0.00021095,2]
[371720275,1752402649625,-460.0,0.00021095,2]
[371720277,1752402649634,-493.58,0.00021095,2]
[371720279,1752402649643,-942.93,0.00021095,2]
[371720281,1752402649652,-1592.51,0.00021095,2]
[371720283,1752402649662,-460.0,0.00021095,2]
[371720285,1752402649671,-1878.02,0.00021095,2]
[371720287,1752402649680,-2705.0615869,0.0002121,4]
[371720289,1752402649690,-557.0,0.00021246,2]
[371720291,1752402649699,-557.0,0.00021319,2]
[371720293,1752402649708,-265.931367,0.00021321,2]
[371720295,1752402649717,-265.931367,0.00021321,2]
[371720297,1752402649726,-557.0,0.00021326,2]
[371720299,1752402649735,-221.46611768,0.00021351,2]
[371720301,1752402649744,-460.0,0.00021369,2]
[371720303,1752402649754,-710.47,0.00021369,2]
[371720305,1752402649763,-1051.33,0.00021369,2]
[371720307,1752402649773,-696.32,0.00021369,2]
[371720309,1752402649782,-151.0,0.00021369,2]
[371720311,1752402649792,-460.0,0.00021369,2]
[371720313,1752402649802,-1132.11,0.00021369,2]
[371720315,1752402649811,-503.85,0.00021369,2]
[371720316,1752402649820,-1332.22,0.00021369,2]
[371720318,1752402649829,-502.81,0.00021369,2]
[371720320,1752402649839,-460.0,0.00021369,2]
[371720322,1752402649848,-493.58,0.00021369,2]
[371720324,1752402649857,-942.93,0.00021369,2]
[371720326,1752402649867,-1592.51,0.00021369,2]
[371720328,1752402649876,-492.08342753,0.00021369,2]
[371720330,1752402649886,-1878.02,0.00021369,2]
[371720332,1752402649896,-557.0,0.00021384,2]
[371720334,1752402649906,-23404.63687098,0.00021391,2]
[371720344,1752402649997,-355.33534456,0.00021391,2]
[371720346,1752402650010,-508.51249724,0.00021391,2]
[371720348,1752402650019,-2705.0615869,0.00021486,5]
[371720350,1752402650028,-557.0,0.00021512,2]
[371720352,1752402650038,-900.0,0.00021612,2]
[371720354,1752402650048,-557.0,0.0002163,2]
[371720356,1752402650058,-411.47,0.00021643,2]
[371720358,1752402650068,-710.47,0.00021643,2]
[371720360,1752402650078,-1051.33,0.00021643,2]
[371720362,1752402650087,-696.32,0.00021643,2]
[371720364,1752402650098,-460.0,0.00021643,2]
[371720366,1752402650108,-1132.11,0.00021643,2]
[371720368,1752402650117,-503.85,0.00021643,2]
[371720370,1752402650127,-1332.22,0.00021643,2]
[371720372,1752402650136,-502.81,0.00021643,2]
[371720374,1752402650147,-460.0,0.00021643,2]
[371720376,1752402650156,-493.58,0.00021643,2]
[371720378,1752402650166,-942.93,0.00021643,2]
[371720380,1752402650175,-1592.51,0.00021643,2]
[371720382,1752402650188,-1878.02,0.00021643,2]
[371720384,1752402650198,-557.0,0.00021748,2]
[371720386,1752402650207,-151.0,0.00021762,2]
[371720388,1752402650216,-225.536147,0.00021762,2]
[371720390,1752402650225,-2705.0615869,0.00021762,5]
[371720392,1752402650237,-557.0,0.00021768,2]
[371720394,1752402650246,-265.931367,0.000219,2]
[371720396,1752402650255,-265.931367,0.000219,2]
[371720397,1752402650266,-265.931367,0.00021916,2]
[371720399,1752402650277,-265.931367,0.00021916,2]
[371720401,1752402650287,-332.63609643,0.00021917,2]
[371720424,1752402650502,-1025.33267632,0.00019162,2]
[371720427,1752402650520,-2729.1,0.00019162,2]
[371720429,1752402650532,-574.47949418,0.00019162,2]
[371720431,1752402650543,-465.24704386,0.00019162,2]
[371720433,1752402650556,-354.66732368,0.00019162,2]
[371720762,1752402699426,5708.82347531,0.00016,2]
[371720763,1752402699448,15521.17652469,0.00016,2]
[371720767,1752402889264,4478.82347531,0.00015946,2]
[371720768,1752402889293,20000.0,0.00015946,2]
[371720769,1752402889319,421.17652469,0.00015946,2]
[371720780,1752402958376,512.928412,0.00013699,2]
[371720794,1752403071386,199.0,0.000163,2]
[371720801,1752403261339,10000.0,0.00015691,2]
[371720901,1752403831849,-690.0,0.00016437,2]
[371720902,1752403831859,-300.0,0.00016437,2]
[371720903,1752403831869,-300.0,0.00016437,2]
[371720904,1752403831878,-181.1,0.00016437,2]
[371720905,1752403831889,-1018.9,0.00016437,2]
[371720906,1752403831899,-300.0,0.00016437,2]
[371720907,1752403831910,-460.0,0.00016438,2]
[371720909,1752403831919,-188.29,0.00016438,2]
[371720910,1752403831928,-460.0,0.00016438,2]
[371720912,1752403831937,-460.0,0.00016438,2]
[371720913,1752403831945,-460.0,0.00016438,2]
[371720914,1752403831953,-99.6351939,0.00016438,2]
[371720915,1752403831963,-360.3648061,0.00016438,2]
[371720916,1752403831970,-44.3779839,0.00016438,2]
[371720917,1752403831979,-321.06130044,0.00016438,2]
[371720953,1752403838039,-94.56071566,0.00016438,2]
[371720955,1752403838048,-460.0,0.00016438,2]
[371720957,1752403838057,-585.19027895,0.00016438,2]
[371720959,1752403838066,-491.75,0.00016438,2]
[371720961,1752403838076,-460.0,0.00016438,2]
[371720963,1752403838085,-460.0,0.00016438,2]
[371720965,1752403838095,-200.44819275,0.00016438,2]
[371720967,1752403838105,-460.0,0.00016438,2]
[371720969,1752403838115,-460.0,0.00016438,2]
[371720971,1752403838124,-137.37404113,0.00016438,2]
[371720985,1752403838249,-455.18249544,0.00016438,2]
[371721328,1752403845962,-171.13346343,0.00016438,2]
[371721329,1752403845972,-460.0,0.00016438,2]
[371721330,1752403845982,-460.0,0.00016438,2]
[371721331,1752403845991,-460.0,0.00016438,2]
[371721332,1752403846001,-460.0,0.00016438,2]
[371721333,1752403846010,-460.0,0.00016438,2]
[371721334,1752403846020,-462.14414731,0.00016438,2]
[371721335,1752403846029,-460.0,0.00016438,2]
[371721336,1752403846039,-460.0,0.00016438,2]
[371721337,1752403846049,-461.91,0.00016438,2]
[371721338,1752403846058,-460.0,0.00016438,2]
[371721339,1752403846068,-460.0,0.00016438,2]
[371721340,1752403846078,-460.0,0.00016438,2]
[371721341,1752403846087,-460.0,0.00016438,2]
[371721342,1752403846097,-460.0,0.00016438,2]
[371721343,1752403846108,-215.89495335,0.00016438,2]
[371721620,1752403897955,8866.89506331,0.0001571,2]
[371721621,1752403897978,16033.10493669,0.0001571,2]
[371726171,1752404091152,505.601113,0.00013699,2]
[371727117,1752404314132,10000.0,0.0001571,2]
[371727130,1752404649584,598.18640436,0.00016187,2]
[371727152,1752404688716,8791.4840778,0.000273,120]
[371727164,1752404831909,462.04159515,0.00016328,2]
[371727179,1752404841954,200.0,0.00016438,10]
[371727180,1752404842400,200.0,0.00016438,10]
[371727181,1752404842832,200.0,0.00016438,10]
[371727182,1752404843322,200.0,0.00016438,10]
[371727333,1752405037474,-1200.0,0.00016336,2]
[371727335,1752405037484,-1200.0,0.00016336,2]
[371727337,1752405037494,-19152.69238786,0.00016337,2]
[371727344,1752405037527,-9229.15099128,0.00016337,2]
[371727347,1752405037537,-3435.67523137,0.00016373,2]
[371727351,1752405037548,-1048.64,0.00016428,3]
[371727354,1752405037558,-524.32,0.00016428,3]
[371727357,1752405037568,-262.16,0.00016428,3]
[371727360,1752405037577,-786.52,0.00016428,3]
[371727363,1752405037587,-240.7335804,0.00016428,2]
[371727366,1752405037597,-160.0,0.00016437,2]
[371727369,1752405037607,-460.0,0.00016438,2]
[371727372,1752405037617,-460.0,0.00016438,2]
[371727375,1752405037627,-500.0,0.00016438,2]
[371727377,1752405037636,-460.0,0.00016438,2]
[371727379,1752405037647,-460.0,0.00016438,2]
[371727381,1752405037657,-460.0,0.00016438,2]
[371727384,1752405037667,-460.0,0.00016438,2]
[371727386,1752405037677,-460.0,0.00016438,2]
[371727388,1752405037686,-462.33346727,0.00016438,2]
[371727390,1752405037695,-460.0,0.00016438,2]
[371727392,1752405037706,-460.1744889,0.00016438,2]
[371727394,1752405037716,-461.0627595,0.00016438,2]
[371727396,1752405037725,-461.09584477,0.00016438,2]
[371727398,1752405037735,-460.0,0.00016438,2]
[371727400,1752405037745,-542.19702195,0.00016438,2]
[371727402,1752405037754,-460.0,0.00016438,2]
[371727404,1752405037764,-460.0,0.00016438,2]
[371727406,1752405037774,-460.0,0.00016438,2]
[371727408,1752405037783,-460.0,0.00016438,2]
[371727410,1752405037793,-460.0,0.00016438,2]
[371727412,1752405037803,-460.0,0.00016438,2]
[371727414,1752405037812,-460.0,0.00016438,2]
[371727416,1752405037823,-460.0,0.00016438,2]
[371727418,1752405037832,-460.0,0.00016438,2]
[371727420,1752405037842,-461.48449122,0.00016438,2]
[371727422,1752405037851,-460.0,0.00016438,2]
[371727424,1752405037861,-460.0,0.00016438,2]
[371727426,1752405037871,-460.0,0.00016438,2]
[371727428,1752405037881,-569.03877384,0.00016438,2]
[371727430,1752405037890,-460.0,0.00016438,2]
[371727432,1752405037900,-460.0,0.00016438,2]
[371727434,1752405037910,-460.0,0.00016438,2]
[371727436,1752405037919,-460.0,0.00016438,2]
[371727438,1752405037929,-460.0,0.00016438,2]
[371727440,1752405037939,-460.0,0.00016438,2]
[371727442,1752405037948,-460.0,0.00016438,2]
[371727444,1752405037958,-460.0,0.00016438,2]
[371727446,1752405037968,-460.0,0.00016438,2]
[371727448,1752405037978,-460.0,0.00016438,2]
[371727450,1752405037987,-460.0,0.00016438,2]
[371727452,1752405037996,-460.0,0.00016438,2]
[371727454,1752405038006,-460.0,0.00016438,2]
[371727456,1752405038016,-460.0,0.00016438,2]
[371727458,1752405038026,-1000.0,0.00016438,2]